Cogmind - Beta 13 @@@ ROGUE MODE // 2024.04.11 @ 16:43:21 Player: FiveBalesOfHay Result: Destroyed by 19-74O(x) with Advanced Assault Cannon Performance ------------- Evolutions (3) 1500 Regions Visited (6) 1200 Robots Destroyed (46) 230 Value Destroyed (1458) 1458 Prototype IDs (2) 40 Alien Tech Used (0) 0 Bonus (220) 220 TOTAL SCORE: 4648 Bonus ------- Follower Combat Kills 20 Entered Garrisons 200 Cogmind --------- Core Integrity 0/700 Matter 284/300 Energy 77/100 System Corruption 15% Temperature Cool (0) Movement Core (100) Ox1 Location -7/Garrison Parts ------- > --- POWER (1) -------- Light Nuclear Core > --- PROPULSION (3) --- (None) > --- UTILITY (5) ------ (None) > --- WEAPON (4) ------- (None) > --- INVENTORY (5) ---- Medium Treads Small Storage Unit Peak State ------------ > --- POWER ------------ Light Angular Momentum Engine > --- PROPULSION ------- Aluminum Leg Aluminum Leg > --- UTILITY ---------- Coolant Injector Small Storage Unit Particle Charger Light Armor Plating > --- WEAPON ----------- Beam Rifle Particle Gun Particle Gun Heavy Laser > --- INVENTORY -------- Reinforced Ion Engine Small Storage Unit Signal Interpreter Improved Targeting Computer System Shield EM Shotgun Rocket Launcher Mining Laser [Rating: 27] Favorites ----------- Power Reinforced Ion Engine Engine Reinforced Ion Engine Power Core Light Nuclear Core Propulsion Aluminum Leg Leg Aluminum Leg Utility Small Storage Unit Device Particle Charger Storage Small Storage Unit Processor Signal Interpreter Hackware System Shield Protection Light Armor Plating Weapon Particle Gun Energy Gun Particle Gun Ballistic Gun Assault Rifle Launcher Rocket Launcher Special Weapon Mining Laser Build | -11 -10 -9 -9 -8 -7 -7 ------- Run | Yrd Mat Mat Min Mat Fac Gar Slots Evolved 6 | . . 2 . 2 2 . Power . | . . . . . . . Propulsion 1 | . . . . . 1 . Utility 3 | . . 1 . 1 1 . Weapon 2 | . . 1 . 1 . . Parts Attached 44 | 6 9 8 1 10 9 1 Power 5 | 1 . 1 . 1 1 1 Engine 4 | 1 . 1 . 1 1 . Core 1 | . . . . . . 1 Reactor . | . . . . . . . Propulsion 9 | 2 3 1 . 2 1 . Treads . | . . . . . . . Leg 9 | 2 3 1 . 2 1 . Wheel . | . . . . . . . Hover . | . . . . . . . Flight . | . . . . . . . Utility 11 | 1 2 3 . 2 3 . Device 6 | . 1 2 . 2 1 . Storage 1 | 1 . . . . . . Processor 2 | . 1 . . . 1 . Hackware 1 | . . . . . 1 . Protection 1 | . . 1 . . . . Artifact . | . . . . . . . Weapon 19 | 2 4 3 1 5 4 . Energy Gun 15 | 1 4 3 1 4 2 . Energy Cannon . | . . . . . . . Ballistic Gun 1 | 1 . . . . . . Ballistic Cannon . | . . . . . . . Launcher 1 | . . . . . 1 . Special Weapon 2 | . . . . 1 1 . Impact Weapon . | . . . . . . . Slashing Weapon . | . . . . . . . Piercing Weapon . | . . . . . . . Special Melee Weapon . | . . . . . . . Unidentified Prototypes . | . . . . . . . Parts Lost 21 | . 1 1 . 5 13 1 Power 2 | . . . . 1 1 . Propulsion 4 | . 1 . . . 3 . Utility 8 | . . 1 . 3 4 . Weapon 7 | . . . . 1 5 1 Highest Loss Streak 13 | . 1 1 . 5 13 1 To Critical Strikes 1 | . . . . . 1 . Average Slot Usage (%) 93 | . 97 99 100 98 71 5 Engine 10 | . 14 11 11 8 6 . Leg 21 | . 26 22 22 17 19 . Device 11 | . 12 11 11 17 2 . Storage 10 | . 14 11 11 9 5 . Processor 2 | . 1 6 . . 6 . Protection 4 | . . 3 11 8 . . Energy Gun 28 | . 21 33 33 35 19 4 Ballistic Gun 1 | . 6 . . . . . Naked Turns 28 | . . . . . 11 17 Heaviest Build 35 | 14 16 29 31 35 26 5 Greatest Support 30 | 20 20 20 20 20 30 3 Greatest Overweight (x) 4 | 4 1 2 1 1 . 1 Average Overweight (x) . | . . . 1 . . . Largest Inventory Capacity 8 | 8 8 8 8 8 8 5 Average Capacity 7 | 7 8 8 8 8 7 5 Most Carried 8 | 2 8 8 8 8 8 2 Average Carried 6 | 1 6 7 7 7 3 2 Final Capacity 8 | 8 8 8 8 8 5 5 Final Carried 8 | 2 8 8 8 8 2 2 Class Distribution -------------------- 55% | Scavenger-Gunner 28% | Mutant 14% | Scavenger-Skirmisher Dominant Class ---------------- Mutant | -10/Materials Scavenger-Skirmisher | -9/Materials Scavenger-Gunner | -9/Mines Scavenger-Gunner | -8/Materials Scavenger-Gunner | -7/Factory Mutant | -7/Garrison Resources | -11 -10 -9 -9 -8 -7 -7 ----------- Run | Yrd Mat Mat Min Mat Fac Gar Matter Collected 730 | 227 184 119 10 90 41 59 Remotely . | . . . . . . . Salvage Created 1690 | . 494 362 . 598 207 29 Parts 86 | . 32 21 . 19 13 1 Haulers Intercepted . | . . . . . . . Recyclers Shooed . | . . . . . . . Parts Field Recycled . | . . . . . . . Retrieved Matter . | . . . . . . . Parts Self-Destructed . | . . . . . . . Prevented . | . . . . . . . Kills | -11 -10 -9 -9 -8 -7 -7 ------- Run | Yrd Mat Mat Min Mat Fac Gar Combat Hostiles Destroyed 31 | . 10 6 . 9 5 1 Guns 26 | . 9 6 . 9 1 1 AOE 4 | . . . . . 4 . Classes Destroyed 9 | . 4 3 . 1 1 . Worker 3 | . . 1 . 1 1 . Builder 2 | . . . . 1 1 . Recycler 3 | . 1 1 . 1 . . Watcher 7 | . 3 3 . 1 . . Swarmer 3 | . 1 1 . . . 1 Grunt 22 | . 9 1 . 8 4 . Brawler 1 | . . 1 . . . . Duelist 1 | . . . . . 1 . Sentry 4 | . . 3 . 1 . . Best Kill Streak 7 | . 4 2 . 4 7 1 Combat Bots Only 5 | . 2 2 . 4 5 1 Max Kills in Single Turn 2 | . 1 1 . 2 2 1 Gunslinging 1 | . . . . 1 . . Exploded 2 | . . . . . 2 . Melee . | . . . . . . . Uniques/NPCs Destroyed . | . . . . . . . Combat | -11 -10 -9 -9 -8 -7 -7 -------- Run | Yrd Mat Mat Min Mat Fac Gar Hostile Shots Fired 225 | . 63 30 . 44 41 47 Missed 47 | . 13 4 . 7 8 15 Damage Taken 2833 | . 590 381 39 571 785 467 Core 1147 | . 179 110 39 96 322 401 Absorbed by Shields 83 | . . . . . . 83 Regen/Repaired (Parts) 24 | . . . . 24 . . Core Remaining (%) 68 | 100 28 . 62 82 . . Volleys Fired 123 | . 48 25 . 23 17 10 Largest 4 | . 2 3 . 4 3 1 Hottest 255 | . 115 180 . 255 166 65 Shots Fired 296 | . 96 73 . 89 28 10 Gun 285 | . 96 73 . 88 18 10 Cannon . | . . . . . . . Launcher 7 | . . . . . 7 . Special 4 | . . . . 1 3 . Kinetic 22 | . 22 . . . . . Thermal 263 | . 74 73 . 88 18 10 Explosive 7 | . . . . . 7 . Electromagnetic 4 | . . . . 1 3 . Robot Hit Streak 14 | . 14 9 . 9 8 1 Robot Miss Streak 5 | . 4 3 . 4 3 5 Penetration Max . | . . . . . . . Secondary Targets 4 | . 1 1 . 1 1 . Max Gunslinging Chain 1 | . 1 1 . 1 1 . Shots Hit Robots 186 | . 66 49 . 52 16 3 Core Hits 101 | . 24 17 . 28 23 9 Critical Kills . | . . . . . . . Critical Parts Destroyed . | . . . . . . . Critical Strikes 10 | . 2 5 . 2 1 . Burn 10 | . 2 5 . 2 1 . Melee Attacks . | . . . . . . . Impact . | . . . . . . . Slashing . | . . . . . . . Piercing . | . . . . . . . Sneak Attacks . | . . . . . . . Combat Hostiles . | . . . . . . . Follow-up Attacks . | . . . . . . . Damage Inflicted 3711 | . 874 657 . 1126 915 139 Guns 2811 | . 874 657 . 1049 171 60 Cannons . | . . . . . . . Explosions 786 | . . . . 70 716 . Melee . | . . . . . . . Ramming 90 | . . . . 7 4 79 Kinetic 236 | . 236 . . . . . Thermal 2805 | . 638 657 . 1009 441 60 Explosive 448 | . . . . . 448 . Electromagnetic 132 | . . . . 110 22 . Impact . | . . . . . . . Slashing . | . . . . . . . Piercing . | . . . . . . . Highest Corruption 15 | . . . . . 12 15 Average Corruption 12 | . . . . . 10 12 Corruption Purged . | . . . . . . . Corruption Blocked . | . . . . . . . Effects 4 | . . . . . . 4 Message Errors 1 | . . . . . . 1 Matter Fused 2 | . . . . . . 2 Energy Discharges 1 | . . . . . . 1 Overload Shots . | . . . . . . . Overflow Damage 13 | . . . . . 13 . Projectiles . | . . . . . . . Explosions 13 | . . . . . 13 . Melee . | . . . . . . . Knockbacks . | . . . . . . . Impact . | . . . . . . . Kinetic . | . . . . . . . Secondary . | . . . . . . . Self-Inflicted Damage 103 | . . . . . 67 36 Shots 3 | . . . . . 3 . Rammed 30 | . . . . . 1 29 Targets Rammed 33 | . . . . 3 1 29 Kicked 3 | . . . . 3 . . Crushed . | . . . . . . . Highest Temperature 809 | . 270 691 . 809 493 30 Average Temperature 161 | . 93 207 . 159 285 16 Received Heat Transfer 1017 | . 309 105 . 369 234 . Effects 34 | . . 20 . 8 6 . Shutdowns 5 | . . 3 . 1 1 . Energy Bleed 4 | . . 4 . . . . Interference 5 | . . 4 . . 1 . Matter Decay 4 | . . 1 . 1 2 . Short Circuit 5 | . . 2 . 1 2 . Damage (minor) 5 | . . 1 . 4 . . Damage (major) 5 | . . 4 . 1 . . Damage (core) 1 | . . 1 . . . . Siege Activations . | . . . . . . . Robots Corrupted . | . . . . . . . Combat Hostiles . | . . . . . . . Parts Fried . | . . . . . . . Impact Corruptions . | . . . . . . . Robots Melted 1 | . 1 . . . . . Combat Hostiles 1 | . 1 . . . . . Parts Melted 19 | . 5 10 . 4 . . Heat Transferred 6876 | . 1880 1993 . 2220 694 89 Parts Sabotaged . | . . . . . . . Parts Stolen . | . . . . . . . Parts Stripped . | . . . . . . . Power Chain Reactions . | . . . . . . . Alert | -11 -10 -9 -9 -8 -7 -7 ------- Run | Yrd Mat Mat Min Mat Fac Gar Peak Influence 273 | . 215 273 75 158 215 131 Initial 111 | . . 76 75 . 56 111 Average 80 | . 79 146 53 40 71 118 Maximum Alert Level 1 | . 1 1 . . 1 . Low Security (%) 96 | 100 93 91 100 100 97 100 Level 1 3 | . 6 8 . . 2 . Level 2 . | . . . . . . . Level 3 . | . . . . . . . Level 4 . | . . . . . . . Level 5 . | . . . . . . . High Security . | . . . . . . . Max Security . | . . . . . . . Squads Dispatched 6 | . 2 . . 2 2 . Investigation 3 | . 1 . . 2 . . Extermination . | . . . . . . . Reinforcement 2 | . 1 . . . 1 . Assault . | . . . . . . . Garrison 1 | . . . . . 1 . Intercept . | . . . . . . . Searches Triggered . | . . . . . . . Construction Impeded 1 | . . . . . 1 . Haulers Reinforced . | . . . . . . . Active Scanning Responses . | . . . . . . . Cargo Convoy Interrupts . | . . . . . . . Stealth | -11 -10 -9 -9 -8 -7 -7 --------- Run | Yrd Mat Mat Min Mat Fac Gar Distress Signals 6 | . 1 2 . 3 . . Communications Jammed . | . . . . . . . Distress Signals . | . . . . . . . Times Spotted 71 | . 21 14 . 24 9 3 Peak Tracking Total 7 | . 5 3 . 7 4 3 Tactical Retreats 10 | . 3 2 . 5 . . Traps | -11 -10 -9 -9 -8 -7 -7 ------- Run | Yrd Mat Mat Min Mat Fac Gar Traps Triggered 3 | . 1 . . 1 . 1 Indirectly 1 | . . . . 1 . . Trap Hack Attempts . | . . . . . . . Triggered . | . . . . . . . Disarmed . | . . . . . . . Reprogrammed . | . . . . . . . Reused . | . . . . . . . Traps Extracted . | . . . . . . . Installed . | . . . . . . . Triggered . | . . . . . . . Machines | -11 -10 -9 -9 -8 -7 -7 ---------- Run | Yrd Mat Mat Min Mat Fac Gar Machines Disabled 6 | . . . . 1 5 . Max in Single Turn 4 | . . . . 1 4 . Machines Repaired . | . . . . . . . Machines Dismantled . | . . . . . . . Machines Sabotaged . | . . . . . . . Overloaded Fab Kills . | . . . . . . . Hacking | -11 -10 -9 -9 -8 -7 -7 --------- Run | Yrd Mat Mat Min Mat Fac Gar Machines Accessed 11 | . 3 4 1 2 1 . Terminals 8 | . 3 4 . 1 . . Fabricators . | . . . . . . . Repair Stations 1 | . . . . 1 . . Recycling Units . | . . . . . . . Scanalyzers . | . . . . . . . Garrison Access 1 | . . . . . 1 . Total Hacks 26 | . 6 12 1 4 3 . Successful 9 | . 1 3 1 3 1 . Failed 17 | . 5 9 . 1 2 . Catastrophic 3 | . 1 2 . . . . Database Lockouts . | . . . . . . . Manual 6 | . 2 4 . . . . Terminals 20 | . 6 12 . 2 . . Fabricators . | . . . . . . . Repair Stations 2 | . . . . 2 . . Recycling Units . | . . . . . . . Scanalyzers . | . . . . . . . Garrison Access 3 | . . . . . 3 . Terminal Hacks 5 | . 1 2 1 1 . . Prototype ID Bank 1 | . . . . 1 . . Open Door 1 | . . . 1 . . . Locate Traps 3 | . 1 2 . . . . Fabricator Hacks . | . . . . . . . Repair Station Hacks 2 | . . . . 2 . . Scan Component 1 | . . . . 1 . . Repair 1 | . . . . 1 . . Recycling Unit Hacks . | . . . . . . . Scanalyzer . | . . . . . . . Garrison Access Hacks 1 | . . . . . 1 . Unlock Access 1 | . . . . . 1 . Unauthorized Hacks 1 | . . 1 . . . . Terminals 1 | . . 1 . . . . Track 1 | . . 1 . . . . Fabricators . | . . . . . . . Repair Stations . | . . . . . . . Recycling Units . | . . . . . . . Scanalyzers . | . . . . . . . Garrison Access . | . . . . . . . Data Cores Recovered . | . . . . . . . Used . | . . . . . . . Hacking Detections 9 | . 3 4 . 2 . . Full Trace Events 1 | . 1 . . . . . Feedback Events . | . . . . . . . Feedback Blocked . | . . . . . . . Robot Schematics Acquired . | . . . . . . . Robots Built . | . . . . . . . Authchips . | . . . . . . . Time . | . . . . . . . Total Robot Build Rating . | . . . . . . . Part Schematics Acquired . | . . . . . . . Parts Built . | . . . . . . . Authchips . | . . . . . . . Time . | . . . . . . . Total Part Build Rating . | . . . . . . . Parts Repaired 1 | . . . . 1 . . Time 38 | . . . . 38 . . Parts Recycled . | . . . . . . . Recycled Matter . | . . . . . . . Retrieved Matter . | . . . . . . . Retrieved Components . | . . . . . . . Parts Scanalyzed . | . . . . . . . Part Schematics Acquired . | . . . . . . . Parts Damaged . | . . . . . . . Bothacking | -11 -10 -9 -9 -8 -7 -7 ------------ Run | Yrd Mat Mat Min Mat Fac Gar Used RIF Installer . | . . . . . . . Robots Hacked . | . . . . . . . Non-combat . | . . . . . . . Combat . | . . . . . . . Robot Hacks Applied . | . . . . . . . Relay Couplers Released . | . . . . . . . Fabnet Peak Effective % . | . . . . . . . Robots Rewired . | . . . . . . . Allies Hacked . | . . . . . . . Hacks Repelled . | . . . . . . . Allies | -11 -10 -9 -9 -8 -7 -7 -------- Run | Yrd Mat Mat Min Mat Fac Gar Total Allies 1 | . . . . . . 1 Largest Group 1 | . . . . . . 1 Highest-Rated Group 62 | . . . . . . 62 Highest-Rated Ally 62 | . . . . . . 62 Total Orders . | . . . . . . . Ally Attacks 1 | . . . . . . 1 Total Damage 48 | . . . . . . 48 Kills 1 | . . . . . . 1 Allies Corrupted . | . . . . . . . Allies Melted . | . . . . . . . Intel | -11 -10 -9 -9 -8 -7 -7 ------- Run | Yrd Mat Mat Min Mat Fac Gar Robot Analysis Total . | . . . . . . . Derelict Logs Recovered 1 | . . . 1 . . . Drone Launches . | . . . . . . . Drone Recoveries . | . . . . . . . Exploration | -11 -10 -9 -9 -8 -7 -7 ------------- Run | Yrd Mat Mat Min Mat Fac Gar Turns Passed 3209 | 56 750 755 555 735 266 92 Spaces Moved 1649 | 35 412 374 287 290 175 76 Core 102 | 10 . . . . 16 76 Treads . | . . . . . . . Legs 1547 | 25 412 374 287 290 159 . Wheels . | . . . . . . . Hover . | . . . . . . . Flight . | . . . . . . . Fastest Speed 50 | 50 120 120 190 120 50 50 Average Speed 148 | 130 123 149 190 189 113 51 Slowest Speed 260 | 250 190 260 190 190 120 100 Overloaded Moves . | . . . . . . . Propulsion Burnouts . | . . . . . . . Robots Hopped . | . . . . . . . Cave-ins Triggered . | . . . . . . . Exploration Rate (%) 32 | 4 62 33 75 31 7 12 Regions Visited 6 Branch Regions 1 Pre-discovered Areas . | . . . . . . . Known Exits Taken 2 | . 1 . . . 1 . Unknown Exits Taken 4 | 1 . 1 1 1 . . Scrap Searched 1 | . . . 1 . . . Spaces Dug 1 | . . . . 1 . . Terrain Destroyed 24 | . . . . 1 23 . Melee . | . . . . . . . Projectile 1 | . . . . 1 . . AOE 23 | . . . . . 23 . Terrain Rammed . | . . . . . . . Walls Destroyed . | . . . . . . . Machines Disabled . | . . . . . . . Actions | -11 -10 -9 -9 -8 -7 -7 --------- Run | Yrd Mat Mat Min Mat Fac Gar Total 2159 | 42 559 516 298 416 209 119 Wait 260 | . 71 98 8 78 5 . Move 1644 | 34 411 373 286 290 174 76 Hop . | . . . . . . . Pick Up 25 | 2 12 5 1 4 1 . Fast Attach 25 | 6 6 3 1 6 2 1 Attach 14 | . 2 3 . 2 7 . Detach 6 | . 1 2 . 2 1 . Swap 5 | . 1 2 . 2 . . Drop 22 | . 7 5 2 7 1 . Fire 123 | . 48 25 . 23 17 10 Melee . | . . . . . . . Ram 30 | . . . . . 1 29 Kick 2 | . . . . 2 . . Crush . | . . . . . . . Escape Stasis 3 | . . . . . . 3 Rewire . | . . . . . . . Trap . | . . . . . . . Miscellaneous . | . . . . . . . Route ------- -11/Scrapyard -10/Materials -9/Materials -9/Mines -8/Materials -7/Factory -7/Garrison History --------- Turn | Location | Event 26 | -11/Scrapyard | Discovered new exit (range 14) 57 | -11/Scrapyard | Entered Materials 305 | -10/Materials | Build established: Mutant 613 | -10/Materials | Core integrity fell below 50% 730 | -10/Materials | Discovered new exit (range 7) 738 | -10/Materials | Identified exit to Materials 807 | -10/Materials | Entered another Materials area 807 | -9/Materials | Evolved 2 slots: Utility x1, Weapon x1 1095 | -9/Materials | Build established: Scavenger-Skirmisher 1288 | -9/Materials | Discovered new exit (range 16) 1550 | -9/Materials | Build established: Scavenger-Gunner 1562 | -9/Materials | Entered Mines 1572 | -9/Mines | Met a Derelict bent on vengeance 1760 | -9/Mines | Met a Derelict who couldn't figure out how to use a Trap Extractor 2009 | -9/Mines | Discovered new exit (range 6) 2011 | -9/Mines | Learned Materials trap positions 2117 | -9/Mines | Entered Materials 2117 | -8/Materials | Evolved 2 slots: Utility x1, Weapon x1 2118 | -8/Materials | Loaded intel: 28 trap records 2737 | -8/Materials | Repaired Particle Charger 2800 | -8/Materials | Discovered new exit (range 15) 2852 | -8/Materials | Entered Factory 2852 | -7/Factory | Evolved 2 slots: Propulsion x1, Utility x1 2879 | -7/Factory | Lost 5 parts (1p3u1w) 3078 | -7/Factory | Garrison activated, responded to threat 3102 | -7/Factory | System corruption reached 10% 3115 | -7/Factory | Identified exit to Garrison 3118 | -7/Factory | Entered Garrison 3136 | -7/Garrison | Lost 13 parts (1p3n4u5w) 3156 | -7/Garrison | Triggered checkpoint 3160 | -7/Garrison | Core integrity fell below 50% 3187 | -7/Garrison | Core integrity fell below 20% 3210 | -7/Garrison | Found embedded Infiltrators 3210 | -7/Garrison | Destroyed by 19-74O(x) with Advanced Assault Cannon Last Messages --------------- S-27 Virus destroyed. Acquired 29 matter. Acquired Lgt. Nuclear Core. Slammed into S-27 Virus. System corrupted: Matter fused (-8). Slammed into S-27 Virus. Destabilizing: System corrupted (+2). Slammed into S-27 Virus. Acquired 30 matter. Slammed into S-27 Virus. Lgt. Nuclear Core broken. Destabilizing: Short circuit. Slammed into S-27 Virus. Destabilizing: System corrupted (+1). Slammed into S-27 Virus. System corrupted: Energy discharge (-23). 19-74O(x): "Hey we were waiting until the time is right..." Slammed into S-27 Virus. S-27 Virus destroyed. Map ----- +----------------------------------------------------+ | ?????????????????????????????????????????????????? | | ?????????????????????????????????????????????????? | | ?????????????????????????????????????????????????? | | ?????????????????????????????????????????????????? | | ?????????????????????????????????????????????????? | | ?????????????????????????????????????????????????? | | ?????????????????????????????????????????????????? | | ?????????????????????????????????????????????????? | | ?????????????????????????????????????????????????? | | ?????????????????????????????????????????????????? | | ?????????????????????????????????????????????????? | | ?????????????????????????????????????????????????? | | ?????????????????????????????????????????????????? | | ?????????????????????????????????????????????????? | | ?????????????????????????????????????????????????? | | ?????????????????????????????????????????????????? | | ????????????????????????????######???????????????? | | ????????????????????????????# #???????????????? | | ????????????????????????????# #???????????????? | | ????????????????????????#???# #???????????????? | | ????????????????????????x##?### #???????????????? | | ???????????????????????? #???# #???????????????? | | ????????????????????????#x#???# #???????????????? | | ????????????????????????#%#???# #???????????????? | | ????????????????????????#/##### #???????????????? | | ????????????????????????#@[% ##############??? | | ????????????????????????#=##### #??? | | ????????????????????????# #???# #??? | | ????????????????????????# #???#### ######### #??? | | ????????????????????????#*##### ## #???????# #??? | | ??????????????????????### + = ## #???????# #??? | | ??????????????????????# ######## #???????# #??? | | ??????????????????????# #???#### #???????# #??? | | ??????????????????????# #???# #???????# #??? | | ??????????????????????### #???# #???????# #??? | | ????????????????????????# #???# ##???????# #??? | | ????????????????????????# #???## #??????? ??? | | ????????????????????????# ????#####??????? ??? | | ????????????????????????# ???????????????? ??? | | ????????????????????????# "??????????????? #??? | | ????????????????????????? #"??????????????? #??? | | ?????????????????????????#?#??????????????? ???? | | ??????????????????????????????????????????? ???? | | ??????????????????????????????????????????? ???? | | ?????????????????????????????????????????????????? | | ?????????????????????????????????????????????????? | | ?????????????????????????????????????????????????? | | ?????????????????????????????????????????????????? | | ?????????????????????????????????????????????????? | | ?????????????????????????????????????????????????? | +----------------------------------------------------+ Best States ------------- Heat Dissipation 34 Coolant Potential 65 Energy Generation 18 Energy Capacity 265 Matter Stores 300 Matter Capacity 300 Sight Range 16 Robot Scan Range 14 Terrain Scan Range 14 Terrain Scan Density 10 ECM Strength 1 Armor Coverage 150 Evasion (%) 55 Particle Charging 15 Defensive Hacking 10 Item Schematics ----------------- None Robot Schematics ------------------ None Fabricated ------------ Nothing Alien Tech Used ----------------- None Achievements -------------- None Challenges ------------ None Game ------ Seed RelayExoskeletonEngine Manual? 0 Play Time 00:34:41 Cumulative 19.4 hours Start 2024.04.10 @ 15:22:22 End 2024.04.11 @ 16:43:21 Sessions 3 Manual Loads 0 Difficulty Rogue Special Mode None Game No. 19 Rogue 19 Adventurer 0 Explorer 0 Win Type - Total 0 Types 0/0/0/0/0/0/0/0/0 Lore% 23 Gallery% 20 Achievement% 19 Wizard Run 0 Options --------- Layout 1 ASCII 1 Keyboard 1 Movement Numpad Keybinds 0 Fullscreen 1 Font 24/Smallcaps Map View 50x35 Zoom Use 0% Tactical HUD 0 Map Filters NONE Filters NONE Steam 0 RUN: 87c2590a-a2fd-450d-bff8-e56f3ad0a57a